bitfinex/quotes_BTCUSD_20220304
["timestamp","ask_amount","ask_price","bid_price","bid_amount"]
[1646424409501,0.062755,39864.0,39862.0,0.17960788]
[1646424409698,0.062755,39864.0,39863.0,0.12960788]
[1646424409901,0.15395829,39869.0,39863.0,0.12960788]
[1646424409902,0.15381,39869.0,39863.0,0.12960788]
[1646424410098,0.15381,39869.0,39863.0,0.7575]
[1646424410099,0.00881,39869.0,39863.0,0.7575]
[1646424410299,0.145,39866.0,39862.0,0.15]
[1646424410498,0.145,39866.0,39865.0,0.12960788]
[1646424410699,0.145,39866.0,39865.0,0.17960788]
[1646424411101,0.145,39866.0,39861.0,0.05]
[1646424411302,0.145,39862.0,39860.0,0.35]
[1646424411900,0.062756,39863.0,39861.0,0.12960788]
[1646424412104,0.062756,39863.0,39862.0,0.12960788]
[1646424412368,0.145,39867.0,39862.0,0.93710788]
[1646424412369,0.207744,39867.0,39862.0,0.93710788]
[1646424412562,0.207744,39867.0,39866.0,0.12960788]
[1646424413664,0.145,39870.0,39866.0,0.93320788]
[1646424413864,0.00016469,39869.0,39866.0,0.8536]
[1646424414164,0.145,39870.0,39869.0,0.00032937]
[1646424414365,0.145,39870.0,39869.0,0.91414584]
[1646424414562,0.062737,39871.0,39869.0,0.90626965]
[1646424414767,0.062737,39871.0,39870.0,0.85984028]
[1646424414963,0.062737,39871.0,39870.0,0.14844028]
[1646424415164,0.53618398,39871.0,39869.0,0.05032937]
[1646424415366,0.53618398,39871.0,39859.0,0.12549189]
[1646424415367,1.4,39869.0,39856.0,0.1]
[1646424415564,0.145,39861.0,39856.0,0.1]
[1646424415767,0.145,39864.0,39860.0,0.20545788]
[1646424415963,0.02505,39865.0,39860.0,0.07585]
[1646424416202,0.36095566,39861.0,39860.0,0.07585]
[1646424416404,0.68940264,39861.0,39860.0,0.07585]
[1646424416605,0.38600566,39861.0,39860.0,0.07585]
[1646424417102,0.70532467,39861.0,39860.0,0.07585]
[1646424417905,0.38600566,39861.0,39860.0,0.07585]
[1646424418106,0.17005,39861.0,39860.0,0.07585]
[1646424418306,0.145,39861.0,39860.0,0.07585]
[1646424418505,0.145,39861.0,39860.0,0.12585]
[1646424420264,0.06276,39863.0,39860.0,0.12585]
[1646424420457,0.06276,39863.0,39860.0,0.18860275]
[1646424421061,0.145,39861.0,39860.0,0.12585]
[1646424421260,0.17005,39861.0,39860.0,0.12585]
[1646424422060,0.41576392,39861.0,39860.0,0.25545788]
[1646424422261,0.39071392,39861.0,39860.0,0.25545788]
[1646424422465,0.145,39861.0,39860.0,0.50545788]
[1646424422660,0.283249,39862.0,39860.0,0.50545788]
[1646424422861,0.283249,39862.0,39861.0,0.12960788]
[1646424423060,0.06276,39863.0,39861.0,0.108397]
[1646424423260,0.06276,39863.0,39862.0,0.108397]
[1646424423461,0.06276,39863.0,39862.0,0.10327826]
[1646424423910,0.30557053,39863.0,39862.0,0.10327826]
[1646424424510,0.06276,39863.0,39862.0,0.10327826]
[1646424425312,0.06276,39863.0,39862.0,0.15327826]
[1646424426612,0.06276,39863.0,39862.0,0.19937826]
[1646424426812,0.062748,39865.0,39862.0,0.19937826]
[1646424427014,0.36513052,39865.0,39864.0,0.10327826]
[1646424427212,0.36858297,39865.0,39864.0,0.10327826]
[1646424427449,0.36858297,39865.0,39864.0,0.15327826]
[1646424429351,0.34353297,39865.0,39864.0,0.15327826]
[1646424429750,0.36858297,39865.0,39864.0,0.15327826]
[1646424431400,0.36858297,39865.0,39864.0,0.40327826]
[1646424431798,0.062748,39865.0,39864.0,0.40327826]
[1646424432001,0.145,39866.0,39864.0,0.40327826]
[1646424432203,0.145,39866.0,39864.0,0.3]
[1646424432803,0.145,39866.0,39864.0,0.35]
[1646424433302,0.02505,39870.0,39864.0,0.35]
[1646424433502,0.062754,39868.0,39865.0,0.06274464]
[1646424433702,0.062754,39868.0,39864.0,0.35]
[1646424433903,0.26086091,39867.0,39864.0,0.35]
[1646424434106,0.17005,39865.0,39864.0,0.3]
[1646424434304,0.47341814,39865.0,39861.0,0.003]
[1646424434507,0.17005,39862.0,39861.0,0.003]
[1646424434704,0.43280877,39862.0,39861.0,0.003]
[1646424434953,0.43280877,39862.0,39845.0,0.20530811]
[1646424434954,0.25058186,39856.0,39845.0,0.20530811]
[1646424435153,0.23558186,39856.0,39854.0,0.000187]
[1646424435353,0.02505,39860.0,39855.0,0.02133788]
[1646424435553,0.150597,39859.0,39854.0,0.000187]
[1646424435954,0.125547,39859.0,39854.0,0.000187]
[1646424436154,0.145,39856.0,39854.0,0.000187]
[1646424436355,0.145,39856.0,39855.0,0.02133788]
[1646424436753,0.062771,39857.0,39855.0,0.02133788]
[1646424436954,0.059771,39857.0,39856.0,0.02133788]
[1646424437154,0.32881793,39857.0,39856.0,0.02133788]
[1646424437356,0.47381793,39857.0,39856.0,0.02133788]
[1646424438058,0.35386793,39857.0,39856.0,0.02133788]
[1646424438260,0.059771,39857.0,39856.0,0.02133788]
[1646424438459,0.112769,39864.0,39856.0,0.08334793]
[1646424438460,0.05,39864.0,39856.0,0.08334793]
[1646424438706,0.145,39869.0,39857.0,0.05]
[1646424438903,0.18842244,39871.0,39858.0,0.0461]
[1646424439102,0.188275,39871.0,39858.0,0.0461]
[1646424439303,0.32542887,39867.0,39858.0,0.25885749]
[1646424439504,0.32542887,39867.0,39858.0,0.37161049]
[1646424439704,0.32542887,39867.0,39858.0,0.32153983]
[1646424439905,0.32542887,39867.0,39864.0,0.05]
[1646424440103,0.32542887,39867.0,39864.0,0.0961]
[1646424440307,0.32542887,39867.0,39864.0,0.1461]
[1646424440505,0.145,39865.0,39864.0,0.1461]
[1646424441307,0.45741901,39866.0,39864.0,0.1461]
[1646424441509,0.13,39865.0,39864.0,0.35]
[1646424441709,0.13,39865.0,39860.0,0.002]
[1646424441710,0.02505,39863.0,39860.0,0.002]
[1646424441907,0.13,39861.0,39860.0,0.002]
[1646424442107,0.15505,39861.0,39860.0,0.02333788]
[1646424442754,0.44658538,39861.0,39860.0,0.02333788]
[1646424442958,0.29153538,39861.0,39860.0,0.02133788]
[1646424443561,0.42153538,39861.0,39860.0,0.02133788]
[1646424444558,0.13,39863.0,39860.0,0.02133788]
[1646424444756,0.13,39863.0,39862.0,0.59727783]
[1646424445258,0.13,39863.0,39862.0,0.64727783]
[1646424446298,0.13,39863.0,39862.0,0.71002854]
[1646424446896,0.00881,39864.0,39862.0,0.71002854]
[1646424447297,0.071561,39865.0,39862.0,0.71002854]
[1646424447497,0.071561,39865.0,39864.0,0.02133788]
[1646424447498,0.00881,39865.0,39864.0,0.02133788]
[1646424447696,0.00881,39865.0,39864.0,0.06743788]
[1646424447899,0.062746,39869.0,39864.0,0.06743788]
[1646424448099,0.062746,39869.0,39868.0,0.02133788]
[1646424448500,0.062746,39869.0,39867.0,0.05]
[1646424448902,0.062746,39869.0,39863.0,0.1]
[1646424449102,0.062746,39869.0,39864.0,0.06274465]
[1646424449505,0.188284,39872.0,39864.0,0.12548665]
[1646424449705,0.188284,39872.0,39864.0,0.11274465]
[1646424449951,0.27610921,39870.0,39863.0,0.1]
[1646424450250,0.13,39869.0,39864.0,0.15]
[1646424450457,0.27610921,39870.0,39864.0,0.05]
[1646424450651,0.27610921,39870.0,39862.0,0.55227783]
[1646424450652,0.255519,39867.0,39862.0,0.55227783]
[1646424450851,0.280569,39867.0,39862.0,0.55227783]
[1646424451051,0.255519,39867.0,39862.0,0.54727783]
[1646424451257,0.28140351,39863.0,39862.0,0.54727783]
[1646424451452,0.125519,39867.0,39862.0,0.56861571]
[1646424451651,0.125519,39867.0,39865.0,0.00095207]
[1646424451851,0.280569,39867.0,39865.0,0.00095207]
[1646424452352,0.11860265,39866.0,39865.0,0.00095207]
[1646424452551,0.36901588,39866.0,39865.0,0.00095207]
[1646424452951,0.25041323,39866.0,39865.0,0.00095207]
[1646424453602,0.26041323,39866.0,39865.0,0.00095207]
[1646424454006,0.40375937,39866.0,39865.0,0.00095207]
[1646424454606,0.46383749,39866.0,39865.0,0.00095207]
[1646424454811,0.74637532,39866.0,39865.0,2.07e-06]
[1646424455009,0.46383749,39866.0,39865.0,2.07e-06]
[1646424455210,0.46383749,39866.0,39862.0,7.83e-06]
[1646424455211,0.68584403,39866.0,39862.0,7.83e-06]
[1646424455410,0.02505,39862.0,39861.0,0.003]
[1646424455608,1.75326913,39861.0,39860.0,2.42e-06]
[1646424455811,1.75326913,39861.0,39856.0,8.67e-06]
[1646424455812,1.90326913,39861.0,39856.0,8.67e-06]
[1646424456010,1.90326913,39861.0,39840.0,0.20530811]
[1646424456011,0.28,39857.0,39840.0,0.20530811]
[1646424456211,0.28,39857.0,39839.0,0.20530811]
[1646424456212,0.22528773,39841.0,39839.0,0.20530811]
[1646424456412,0.22528773,39841.0,39840.0,0.02133788]
[1646424456413,0.35528773,39841.0,39840.0,0.02133788]
[1646424456810,0.22528773,39841.0,39840.0,0.03014788]
[1646424457109,0.35528773,39841.0,39840.0,0.03014788]
[1646424457363,0.02505,39839.0,39833.0,0.20530811]
[1646424457555,0.02505,39839.0,39832.0,0.24337614]
[1646424457556,0.192811,39836.0,39832.0,0.24337614]
[1646424457959,0.192811,39836.0,39834.0,0.00881]
[1646424458255,0.192811,39836.0,39832.0,0.20530811]
[1646424458256,0.02505,39835.0,39832.0,0.21411811]
[1646424458456,0.23350127,39834.0,39832.0,0.00881]
[1646424458657,0.15505,39833.0,39830.0,0.001]
[1646424458858,0.02505,39832.0,39830.0,0.001]
[1646424459062,0.15505,39832.0,39830.0,0.001]
[1646424459259,0.15505,39832.0,39824.0,0.00302217]
[1646424459260,0.02505,39826.0,39824.0,0.00302217]
[1646424459562,0.02505,39826.0,39824.0,0.003]
[1646424459563,0.02505,39825.0,39824.0,0.003]
[1646424459760,0.27976449,39826.0,39824.0,0.003]
[1646424460163,0.27976449,39826.0,39821.0,0.002]
[1646424460164,0.06114304,39823.0,39821.0,0.002]
[1646424460363,0.27976449,39826.0,39818.0,0.003]
[1646424460364,0.35485001,39822.0,39819.0,0.002]
[1646424460559,0.02505,39821.0,39819.0,0.002]
[1646424460759,0.02505,39820.0,39819.0,0.002]
[1646424460961,0.18851,39824.0,39819.0,0.002]
[1646424461213,0.24336001,39824.0,39819.0,0.002]
[1646424461606,0.01,39823.0,39819.0,0.002]
[1646424462002,0.062842,39822.0,39819.0,0.002]
[1646424462208,0.062842,39822.0,39818.0,0.001]
[1646424462209,0.35485001,39821.0,39818.0,0.001]
[1646424462407,0.05485001,39819.0,39817.0,0.0001]
[1646424462607,1.4,39817.0,39815.0,0.002]
[1646424462803,1.4,39817.0,39812.0,0.003]
[1646424462804,0.1498052,39813.0,39812.0,0.003]
[1646424463205,0.07990001,39813.0,39812.0,0.003]
[1646424463405,0.02505,39813.0,39812.0,0.003]
[1646424464004,0.02505,39815.0,39812.0,0.003]
[1646424464308,0.07990001,39813.0,39812.0,0.003]
[1646424464955,0.14275401,39816.0,39812.0,0.143]
[1646424465258,0.05485001,39816.0,39812.0,0.003]
[1646424466155,0.02505,39818.0,39812.0,0.06583113]
[1646424466354,0.07990001,39818.0,39816.0,0.14]
[1646424466556,0.07990001,39818.0,39817.0,0.14]
[1646424466755,0.07990001,39818.0,39817.0,0.19]
[1646424467156,0.02505,39823.0,39817.0,0.19]
[1646424467355,0.55,39825.0,39816.0,0.06282598]
[1646424467555,0.60485001,39825.0,39816.0,0.06282598]
[1646424469298,0.10485001,39825.0,39816.0,0.06282598]
[1646424469507,0.05485001,39825.0,39816.0,0.06282598]
[1646424469698,0.05485001,39825.0,39816.0,0.10892598]
[1646424469898,0.33712668,39825.0,39816.0,0.20892598]
[1646424470099,0.05485001,39825.0,39816.0,0.20892598]
[1646424471199,0.062823,39826.0,39816.0,0.1461]
[1646424471200,0.26808931,39826.0,39816.0,0.1461]
[1646424471401,0.05485001,39824.0,39816.0,0.1461]
[1646424471799,0.27487996,39819.0,39816.0,0.1461]
[1646424472002,0.27487996,39819.0,39818.0,9.157e-05]
[1646424472200,0.062828,39820.0,39818.0,9.157e-05]
[1646424473660,0.05485001,39819.0,39818.0,9.157e-05]
[1646424474262,0.062828,39820.0,39818.0,9.157e-05]
[1646424474460,0.05485001,39819.0,39818.0,9.157e-05]
[1646424474661,0.32068969,39820.0,39818.0,0.14009157]
[1646424474860,0.32068969,39820.0,39818.0,0.05009157]
[1646424475160,0.10632057,39823.0,39818.0,9.157e-05]
[1646424475362,0.062828,39820.0,39818.0,9.157e-05]
[1646424476116,0.27028408,39826.0,39818.0,9.157e-05]
[1646424476311,0.062825,39824.0,39818.0,9.157e-05]
[1646424476913,0.062825,39824.0,39815.0,0.10009138]
[1646424477113,0.062825,39824.0,39815.0,9.138e-05]
[1646424477314,0.062825,39824.0,39815.0,0.30009138]
[1646424477513,0.062825,39824.0,39817.0,0.06282353]
[1646424477715,0.625642,39828.0,39815.0,0.55009138]
[1646424477716,0.5,39828.0,39820.0,0.01269375]
[1646424477915,0.5,39828.0,39821.0,0.2961]
[1646424478113,0.7331,39834.0,39823.0,0.25]
[1646424478414,1.2331,39834.0,39825.0,0.0168444]
[1646424478611,1.2331,39834.0,39826.0,0.0461]
[1646424478811,0.74486307,39834.0,39826.0,0.0961]
[1646424479114,0.2474,39838.0,39826.0,0.4461]
[1646424479312,0.02505,39839.0,39827.0,0.1]
[1646424479514,0.15973747,39832.0,39828.0,0.0461]
[1646424479716,0.18478747,39832.0,39827.0,0.05]
[1646424480162,0.18478747,39832.0,39826.0,0.0961]
[1646424480363,0.3012266,39831.0,39830.0,0.14]
[1646424480762,0.062814,39831.0,39830.0,0.05]
[1646424481162,0.062814,39831.0,39826.0,0.0961]
[1646424481565,2.62534638,39839.0,39830.0,0.25]
[1646424481566,0.2369888,39839.0,39830.0,0.25]
[1646424481764,0.2369888,39839.0,39831.0,0.3961]
[1646424481965,0.112795,39842.0,39831.0,0.4461]
[1646424482364,0.112795,39842.0,39833.0,0.25]
[1646424482567,0.104545,39842.0,39834.0,0.0461]
[1646424482764,0.06,39842.0,39838.0,0.14]
[1646424482966,0.01,39842.0,39841.0,0.14]
[1646424483164,0.01,39842.0,39841.0,0.19]
[1646424483464,0.01,39842.0,39837.0,0.0461]
[1646424483714,0.01,39842.0,39836.0,0.002]
[1646424483715,0.14731279,39841.0,39836.0,0.002]
[1646424484010,0.02505,39839.0,39836.0,0.002]
[1646424484209,0.24010376,39838.0,39836.0,0.002]
[1646424484411,0.24689386,39837.0,39836.0,0.002]
[1646424484609,0.24689386,39837.0,39836.0,0.142]
[1646424484809,0.24689386,39837.0,39836.0,0.192]
[1646424485012,0.062806,39839.0,39836.0,0.19]
[1646424485216,0.062806,39839.0,39831.0,0.3]
[1646424485415,0.01,39842.0,39832.0,0.0961]
[1646424485612,0.01,39842.0,39833.0,0.0123078]
[1646424485813,0.23324761,39842.0,39834.0,0.0461]
[1646424486013,0.5491141,39842.0,39834.0,0.0461]
[1646424486512,0.32586649,39842.0,39834.0,0.0461]
[1646424486714,0.45146849,39842.0,39834.0,0.0461]
[1646424486913,0.32586649,39842.0,39835.0,0.06279225]
[1646424487114,0.32586649,39842.0,39836.0,0.0461]
[1646424487352,0.28567751,39841.0,39836.0,0.0461]
[1646424487860,0.38867149,39842.0,39835.0,0.003]
[1646424488053,0.02505,39841.0,39835.0,0.003]
[1646424488252,0.38867149,39842.0,39835.0,0.003]
[1646424488453,0.00881,39841.0,39835.0,0.003]
[1646424488655,0.28090135,39840.0,39835.0,0.003]
[1646424488854,0.3,39839.0,39835.0,0.003]
[1646424489054,0.062809,39836.0,39827.0,0.25]
[1646424489256,0.062809,39836.0,39822.0,0.7219]
[1646424489257,0.31144556,39830.0,39822.0,0.7219]
[1646424489455,0.46175735,39830.0,39826.0,0.14]
[1646424489653,0.48680735,39830.0,39829.0,0.14]
[1646424489856,0.89417056,39830.0,39829.0,0.14]
[1646424490055,0.86912056,39830.0,39829.0,0.14]
[1646424490255,0.89417056,39830.0,39829.0,0.14]
[1646424490460,1.19417056,39830.0,39829.0,0.14]
[1646424490857,0.89417056,39830.0,39829.0,0.14]
[1646424491110,1.19417056,39830.0,39829.0,0.14]
[1646424491316,1.06852556,39830.0,39829.0,0.14]
[1646424492312,0.59316377,39830.0,39826.0,0.001]
[1646424492513,0.61821377,39830.0,39829.0,0.14]
[1646424493117,0.59316377,39830.0,39829.0,0.12556977]
[1646424494016,0.31144556,39830.0,39829.0,0.12556977]
[1646424494416,0.134468,39831.0,39829.0,0.12556977]
[1646424494616,0.134468,39831.0,39826.0,0.001]
[1646424494617,0.01762,39831.0,39826.0,0.001]
[1646424494857,0.062822,39832.0,39826.0,0.001]
[1646424494858,0.062822,39832.0,39830.0,0.19]
[1646424495059,0.062822,39832.0,39831.0,0.14]
[1646424495259,0.5,39838.0,39831.0,0.14]
[1646424495260,0.562802,39838.0,39831.0,0.14]
[1646424495462,0.562802,39838.0,39830.0,0.0461]
[1646424495667,1.4,39836.0,39825.0,0.062804]
[1646424495861,0.15,39829.0,39813.0,0.2256439]
[1646424496061,0.02505,39826.0,39817.0,0.00432009]
[1646424496259,0.08789,39823.0,39821.0,0.00432145]
[1646424496460,0.06284,39823.0,39812.0,0.253]
[1646424496760,0.27438392,39815.0,39812.0,0.24664219]
[1646424496959,1.83863817,39827.0,39812.0,0.24664219]
[1646424497160,0.2343,39827.0,39819.0,0.24564219]
[1646424497363,0.5072,39832.0,39819.0,0.24564219]
[1646424497561,0.05,39832.0,39823.0,0.13135781]
[1646424497761,0.5,39833.0,39827.0,0.13135781]
[1646424497959,0.5,39833.0,39831.0,0.13135781]
[1646424498164,0.5,39840.0,39833.0,0.0150755]
[1646424498365,0.5,39840.0,39838.0,0.24564219]
[1646424498606,0.488,39848.0,39839.0,0.17745781]
[1646424498807,0.3,39851.0,39839.0,0.1461]
[1646424499008,0.05,39852.0,39839.0,0.1911]
[1646424499009,0.22630905,39847.0,39839.0,0.1911]
[1646424499207,0.26169299,39845.0,39839.0,0.1911]
[1646424499407,0.062791,39844.0,39839.0,0.0911]
[1646424499807,0.24000001,39842.0,39839.0,0.0911]
[1646424500007,0.27095813,39841.0,39839.0,0.0911]
[1646424500206,0.27095813,39841.0,39840.0,0.10241735]
[1646424500409,0.24000001,39842.0,39840.0,0.10241735]
[1646424500612,0.24000001,39842.0,39840.0,0.05]
[1646424500811,0.24000001,39842.0,39841.0,0.13135781]
[1646424501209,0.24000001,39842.0,39841.0,0.477]
[1646424501422,0.9683,39858.0,39842.0,0.6]
[1646424501423,0.4891,39856.0,39842.0,0.6]
[1646424501613,0.7424,39858.0,39850.0,0.24564219]
[1646424501808,0.01668522,39862.0,39850.0,0.24564219]
[1646424501809,0.01668522,39862.0,39851.0,0.0961]
[1646424502010,0.17475185,39862.0,39851.0,0.0961]
[1646424502210,0.17475185,39862.0,39851.0,0.1461]
[1646424502486,0.26928525,39859.0,39851.0,0.1461]
[1646424502883,0.26928525,39859.0,39851.0,0.0961]
[1646424502884,0.150595,39857.0,39851.0,0.0961]
[1646424503084,0.02505,39855.0,39851.0,0.0961]
[1646424503282,0.02505,39855.0,39851.0,0.0461]
[1646424503283,0.31683589,39855.0,39851.0,0.0461]
[1646424503483,0.062792,39851.0,39838.0,0.24564219]
[1646424503787,0.062792,39851.0,39836.0,0.10881]
[1646424503788,0.28584436,39849.0,39847.0,0.001]
[1646424503983,0.28584436,39849.0,39848.0,0.11693088]
[1646424504183,0.42872852,39849.0,39848.0,0.11693088]
[1646424504783,0.72689231,39849.0,39847.0,0.001]
[1646424505188,0.14689815,39838.0,39833.0,0.24564219]
[1646424505385,0.062802,39840.0,39833.0,0.24564219]
[1646424506814,0.025,39860.0,39839.0,1.79564219]
[1646424507013,0.00016318,39871.0,39855.0,0.15]
[1646424507213,0.00016318,39871.0,39865.0,0.05]
[1646424507520,0.00016318,39871.0,39866.0,0.3461]
[1646424507714,0.21394193,39876.0,39866.0,0.49177548]
[1646424507913,0.21394193,39876.0,39866.0,0.16276437]
[1646424508116,0.21394193,39876.0,39866.0,0.1484467]
[1646424508117,0.30140821,39867.0,39866.0,0.1484467]
[1646424508315,0.30140821,39867.0,39866.0,0.1484313]
[1646424508316,0.28378821,39867.0,39866.0,0.1484313]
[1646424508818,0.13228423,39867.0,39866.0,0.1484313]
[1646424509018,0.002,39867.0,39866.0,0.1484313]
[1646424509214,0.002,39867.0,39866.0,0.1984313]
[1646424509613,0.01081,39867.0,39866.0,0.1984313]
[1646424509862,0.002,39867.0,39866.0,0.1984313]
[1646424512469,0.002,39867.0,39866.0,0.1484313]
[1646424512870,0.012,39867.0,39866.0,0.1572413]
[1646424513721,0.25855325,39867.0,39866.0,0.2072413]
[1646424514322,0.25855325,39867.0,39866.0,0.1984313]
[1646424514526,0.25855325,39867.0,39866.0,0.14845954]
[1646424514923,0.31521301,39867.0,39866.0,0.10235954]
[1646424515124,0.012,39867.0,39866.0,0.10235954]
[1646424515325,0.012,39867.0,39866.0,0.14845954]
[1646424515925,0.02081,39867.0,39866.0,0.14845954]
[1646424516128,0.02081,39867.0,39866.0,0.3461]
[1646424516326,0.012,39867.0,39866.0,0.19843258]
[1646424516729,0.012,39867.0,39866.0,0.24843258]
[1646424517124,0.012,39867.0,39866.0,0.49407477]
[1646424517382,0.012,39867.0,39866.0,0.54843258]
[1646424517584,0.012,39867.0,39866.0,0.24843258]
[1646424518584,0.05,39879.0,39867.0,0.06273772]
[1646424518782,0.0001633,39871.0,39868.0,0.0461]
[1646424518982,0.0001633,39871.0,39870.0,0.1023467]
[1646424519185,0.0001633,39871.0,39870.0,0.1984467]
[1646424519684,0.30174654,39876.0,39870.0,0.21142336]
[1646424519883,0.30174654,39876.0,39874.0,0.11725461]
[1646424520083,0.57430214,39876.0,39875.0,0.16338844]
[1646424520686,0.57430214,39876.0,39875.0,0.16335461]
[1646424520894,0.02505,39879.0,39875.0,0.16335461]
[1646424521133,0.125483,39895.0,39878.0,0.13135781]
[1646424521134,0.00065312,39883.0,39878.0,0.13135781]
[1646424521333,0.00065312,39883.0,39879.0,0.0461]
[1646424521536,0.00065312,39883.0,39880.0,0.0461]
[1646424521730,0.00065312,39883.0,39878.0,0.0461]
[1646424521930,0.27244016,39881.0,39878.0,0.0461]
[1646424522432,0.34399316,39881.0,39878.0,0.0461]
[1646424522931,0.36851644,39881.0,39878.0,0.0461]
[1646424523633,0.35986974,39881.0,39878.0,0.0461]
[1646424524031,0.35486974,39881.0,39878.0,0.0461]
[1646424524432,0.35470644,39881.0,39878.0,0.0461]
[1646424524637,0.33899316,39881.0,39878.0,0.0461]
[1646424524868,0.33915646,39881.0,39878.0,0.0461]
[1646424525069,0.33915646,39881.0,39878.0,0.05491]
[1646424525670,0.33899316,39881.0,39878.0,0.05491]
[1646424525869,0.06088234,39880.0,39878.0,0.05491]
[1646424526270,0.07856059,39880.0,39878.0,0.05491]
[1646424526471,0.02505,39879.0,39870.0,0.0461]
[1646424526671,0.02505,39879.0,39863.0,0.49186584]
[1646424526672,0.02505,39875.0,39863.0,0.19186584]
[1646424526873,0.02505,39873.0,39859.0,0.4837]
[1646424527276,0.2590138,39868.0,39859.0,0.4837]
[1646424527473,0.2590138,39868.0,39859.0,0.430735]
[1646424527672,0.2590138,39868.0,39857.0,0.0461]
[1646424527673,0.21027209,39863.0,39857.0,0.0461]
[1646424528272,0.21027209,39863.0,39861.0,0.13135781]
[1646424528472,0.21027209,39863.0,39862.0,0.13135781]
[1646424528712,0.21027209,39863.0,39856.0,0.12551273]
[1646424529315,0.3468268,39868.0,39857.0,0.05]
[1646424529917,0.3468268,39868.0,39859.0,0.06275711]
[1646424530518,0.062757,39873.0,39860.0,0.3]
[1646424530719,0.00014648,39871.0,39861.0,0.17159499]
[1646424530917,0.00014648,39871.0,39865.0,0.13135781]
[1646424531117,0.00014648,39871.0,39866.0,0.0461]
[1646424531833,0.31756192,39874.0,39866.0,0.0461]
[1646424532016,0.31756192,39874.0,39870.0,0.11870359]
[1646424532017,0.0001465,39871.0,39870.0,0.11870359]
[1646424532664,0.0001465,39871.0,39870.0,0.12751359]
[1646424532867,0.31756192,39874.0,39870.0,0.12751359]
[1646424533064,0.31756192,39874.0,39873.0,0.13135781]
[1646424533265,0.58759358,39874.0,39873.0,0.11868424]
[1646424535466,0.062745,39875.0,39873.0,0.11868424]
[1646424535666,0.06289273,39875.0,39874.0,0.11870359]
[1646424536517,0.062745,39875.0,39874.0,0.11870359]
[1646424536718,0.062745,39875.0,39869.0,0.002]
[1646424536920,0.062745,39875.0,39873.0,0.11869764]
[1646424537118,0.062745,39875.0,39874.0,0.11869764]
[1646424537317,0.37972563,39876.0,39874.0,0.11869764]
[1646424537519,0.13284853,39875.0,39869.0,0.002]
[1646424537720,0.3795779,39876.0,39865.0,0.2088497]
[1646424537919,0.3795779,39876.0,39871.0,0.001]
[1646424538117,0.3795779,39876.0,39875.0,0.13135781]
[1646424539721,0.08019629,39877.0,39875.0,0.13135781]
[1646424539970,0.06289852,39877.0,39872.0,0.001]
[1646424540170,0.062751,39877.0,39872.0,0.001]
[1646424540377,0.079619,39877.0,39872.0,0.001]
[1646424540671,0.15076871,39875.0,39872.0,0.001]
[1646424540873,0.22795817,39875.0,39874.0,0.13135781]
[1646424541070,0.07718946,39875.0,39874.0,0.13135781]
[1646424541269,0.07718946,39875.0,39874.0,0.11874426]
[1646424542771,0.28319769,39878.0,39874.0,0.11874426]
[1646424542772,0.00016429,39876.0,39874.0,0.11874426]
[1646424542973,0.00016429,39876.0,39867.0,0.12547914]
[1646424542974,0.00016429,39876.0,39875.0,0.11874426]
[1646424543717,0.36253831,39876.0,39875.0,0.11874426]
[1646424544716,0.22763068,39876.0,39875.0,0.11874426]
[1646424544919,0.0155334,39877.0,39875.0,0.11874426]
[1646424545118,0.0158451,39877.0,39865.0,0.12548705]
[1646424545319,0.0158451,39877.0,39865.0,0.17548705]
[1646424545522,0.00016429,39877.0,39866.0,0.3]
[1646424545722,0.062744,39876.0,39866.0,0.3]
[1646424545921,0.062744,39876.0,39870.0,0.11874426]
[1646424546122,0.01077793,39884.0,39874.0,0.1023467]
[1646424546320,0.27292057,39880.0,39875.0,0.0461]
[1646424546519,0.00065107,39880.0,39876.0,0.0461]
[1646424546918,0.01697522,39880.0,39876.0,0.044302]
[1646424547218,0.01697522,39880.0,39879.0,0.11874426]
[1646424547467,0.01632415,39880.0,39879.0,0.11874426]
[1646424547663,0.01648694,39880.0,39879.0,0.11874426]
[1646424548568,0.01077793,39884.0,39879.0,0.11874426]
[1646424548569,0.05,39886.0,39879.0,0.1984313]
[1646424548866,0.00016279,39881.0,39879.0,0.0961]
[1646424549067,0.00016279,39881.0,39880.0,0.10234542]
[1646424549267,0.14648442,39881.0,39880.0,0.14844542]
[1646424549466,0.14648442,39881.0,39880.0,0.0461]
[1646424549666,0.062741,39882.0,39880.0,0.0461]
[1646424550166,0.49500967,39881.0,39880.0,0.0461]
[1646424550367,0.49500967,39881.0,39874.0,0.0461]
[1646424551224,0.00016312,39879.0,39874.0,0.0461]
[1646424551429,0.25056632,39875.0,39874.0,0.0461]
[1646424551624,0.25056632,39875.0,39874.0,0.15837894]
[1646424552126,0.08018355,39879.0,39874.0,0.15837894]
[1646424552324,0.00016312,39876.0,39874.0,0.0461]
[1646424552524,0.00016312,39876.0,39875.0,0.11228035]
[1646424553329,0.24126976,39878.0,39875.0,0.11228035]
[1646424553526,0.00016305,39877.0,39874.0,0.0461]
[1646424553727,0.00016305,39877.0,39876.0,0.11228035]
[1646424554626,0.44593448,39880.0,39876.0,0.11228035]
[1646424554876,0.3731,39877.0,39872.0,0.002]
[1646424555172,0.3731,39877.0,39863.0,0.7368]
[1646424555477,0.01639,39875.0,39863.0,0.7368]
[1646424555670,0.01714611,39874.0,39863.0,0.7368]
[1646424555975,0.00016305,39872.0,39858.0,0.062754]
[1646424556172,0.07607116,39874.0,39858.0,0.062754]
[1646424556372,0.062762,39873.0,39862.0,0.24564219]
[1646424556570,0.01330916,39874.0,39860.0,0.24564219]
[1646424556873,0.01330916,39874.0,39857.0,0.02805]
[1646424556874,0.01345335,39873.0,39862.0,0.07488329]
[1646424557171,0.24812511,39876.0,39864.0,0.12548112]
[1646424557172,0.425499,39875.0,39864.0,0.12548112]
[1646424557373,0.06275,39871.0,39861.0,0.125484]
[1646424557773,0.06275,39871.0,39861.0,0.225484]
[1646424558172,0.06275,39871.0,39865.0,0.11874426]
[1646424558374,0.28630018,39869.0,39860.0,0.12549179]
[1646424558626,0.28630018,39869.0,39858.0,0.004]